fUSD/lending_fUSD_20251014
["ID","MTS","AMOUNT","RATE_DAILY","PERIOD"]
[391169312,1760406635210,-1154.7,0.00029044,7]
[391169313,1760406635219,-500.0,0.00029044,7]
[391169314,1760406635230,-702.56,0.00029044,7]
[391169315,1760406635239,-500.0,0.00029044,7]
[391169316,1760406635249,-500.0,0.00029044,7]
[391169317,1760406635258,-500.0,0.00029044,7]
[391169318,1760406635267,-832.47,0.00029044,7]
[391169319,1760406635276,-500.0,0.00029044,7]
[391169320,1760406635287,-500.0,0.00029044,7]
[391169321,1760406635297,-500.0,0.00029044,7]
[391169322,1760406635307,-607.0,0.00029044,7]
[391169323,1760406635316,-599.67,0.00029044,7]
[391169324,1760406635326,-1119.19,0.00029044,7]
[391169325,1760406635341,-664.59,0.00029044,7]
[391169326,1760406635350,-500.0,0.00029044,7]
[391169327,1760406635359,-500.0,0.00029044,7]
[391169328,1760406635369,-500.0,0.00029044,7]
[391169329,1760406635379,-500.0,0.00029044,7]
[391169330,1760406635393,-500.0,0.00029044,7]
[391169331,1760406635403,-1136.06,0.00029044,7]
[391169332,1760406635412,-500.0,0.00029044,7]
[391169333,1760406635420,-1181.03,0.00029044,7]
[391169334,1760406635430,-500.0,0.00029044,7]
[391169335,1760406635439,-584.17,0.00029044,7]
[391169336,1760406635448,-569.36,0.00029044,7]
[391169337,1760406635456,-500.0,0.00029044,7]
[391169338,1760406635466,-500.0,0.00029044,7]
[391169339,1760406635474,-500.0,0.00029044,7]
[391169340,1760406635484,-500.0,0.00029044,7]
[391169341,1760406635493,-500.0,0.00029044,7]
[391169342,1760406635502,-500.0,0.00029044,7]
[391169343,1760406635511,-500.0,0.00029044,7]
[391169344,1760406635519,-500.0,0.00029044,7]
[391169345,1760406635528,-681.82,0.00029044,7]
[391169346,1760406635538,-1031.76,0.00029044,7]
[391169347,1760406635547,-500.0,0.00029044,7]
[391169348,1760406635555,-726.39,0.00029044,7]
[391169349,1760406635564,-500.0,0.00029044,7]
[391169350,1760406635573,-500.0,0.00029044,7]
[391169351,1760406635582,-500.0,0.00029044,7]
[391169352,1760406635591,-886.93,0.00029044,7]
[391169353,1760406635600,-564.68,0.00029044,7]
[391169354,1760406635609,-841.5,0.00029044,7]
[391169355,1760406635619,-900.66,0.00029044,7]
[391169356,1760406635628,-500.0,0.00029044,7]
[391169357,1760406635636,-500.0,0.00029044,7]
[391169358,1760406635646,-2000.0,0.00029044,30]
[391169359,1760406635655,-500.0,0.00029044,7]
[391169360,1760406635664,-531.71,0.00029044,7]
[391169361,1760406635673,-500.0,0.00029044,7]
[391169362,1760406635682,-500.0,0.00029044,7]
[391169363,1760406635691,-500.0,0.00029044,7]
[391169364,1760406635701,-3065.0554634,0.00029045,2]
[391169365,1760406635710,-7191.4256324,0.00029045,2]
[391169366,1760406635719,-927.3056075,0.00029045,2]
[391169367,1760406635728,-19727.3029506,0.00029045,2]
[391169368,1760406635737,-5204.05115836,0.00029051,2]
[391169369,1760406635747,-553.46517548,0.00029068,2]
[391169370,1760406635764,-500.83813114,0.00029073,5]
[391169371,1760406635776,-501.58350115,0.00029073,5]
[391169372,1760406635786,-502.84819085,0.00029073,5]
[391169373,1760406635795,-501.72224784,0.00029073,5]
[391169374,1760406635804,-501.45473146,0.00029073,5]
[391169375,1760406635814,-502.09449932,0.00029073,2]
[391169376,1760406635822,-501.3157321,0.00029073,5]
[391169377,1760406635831,-502.69534853,0.00029073,5]
[391169378,1760406635840,-294.1666853,0.00029073,5]
[391169379,1760406635849,-501.47380294,0.00029073,5]
[391169380,1760406635862,-502.64862122,0.00029073,5]
[391169381,1760406635871,-501.07668643,0.00029073,5]
[391169382,1760406635880,-514.22896716,0.00029073,5]
[391169383,1760406635890,-505.09838233,0.00029073,5]
[391169384,1760406635902,-504.80717165,0.00029073,5]
[391169385,1760406635912,-508.78970805,0.00029073,5]
[391169386,1760406635923,-523.11,0.00029081,2]
[391169387,1760406635933,-530.52,0.00029081,2]
[391169388,1760406635945,-200.0,0.00029081,2]
[391169389,1760406635956,-203.51936956,0.00029081,8]
[391169390,1760406635966,-193.65141863,0.00029081,2]
[391169391,1760406635975,-513.14583432,0.00029081,2]
[391169392,1760406635984,-178.39301027,0.00029081,2]
[391169393,1760406635994,-500.0,0.00029081,7]
[391169394,1760406636005,-500.0,0.00029081,7]
[391169395,1760406636015,-706.75,0.00029081,7]
[391169396,1760406636024,-500.0,0.00029081,7]
[391169397,1760406636034,-830.21,0.00029081,7]
[391169398,1760406636043,-500.0,0.00029081,7]
[391169399,1760406636053,-500.0,0.00029081,7]
[391169400,1760406636062,-1247.59,0.00029081,7]
[391169401,1760406636071,-500.0,0.00029081,7]
[391169402,1760406636081,-500.0,0.00029082,7]
[391169403,1760406636091,-4546.31,0.00029082,7]
[391169404,1760406636101,-2338.93,0.00029082,7]
[391169405,1760406636112,-500.0,0.00029082,7]
[391169406,1760406636121,-500.0,0.00029082,7]
[391169407,1760406636135,-758.57,0.00029082,7]
[391169408,1760406636145,-628.16,0.00029082,7]
[391169409,1760406636154,-645.96,0.00029082,7]
[391169410,1760406636164,-517.46,0.00029082,7]
[391169411,1760406636173,-500.0,0.00029082,7]
[391169412,1760406636183,-601.23,0.00029082,7]
[391169413,1760406636192,-736.8,0.00029082,7]
[391169414,1760406636203,-500.0,0.00029082,7]
[391169415,1760406636212,-500.0,0.00029082,7]
[391169416,1760406636223,-500.0,0.00029082,7]
[391169417,1760406636234,-519.51,0.00029082,7]
[391169418,1760406636243,-500.0,0.00029082,7]
[391169419,1760406636253,-610.9,0.00029082,7]
[391169420,1760406636263,-500.0,0.00029082,7]
[391169421,1760406636273,-500.0,0.00029082,7]
[391169422,1760406636284,-500.0,0.00029082,7]
[391169423,1760406636294,-500.0,0.00029082,7]
[391169424,1760406636306,-500.0,0.00029082,7]
[391169425,1760406636317,-545.68,0.00029082,7]
[391169426,1760406636328,-500.0,0.00029082,7]
[391169427,1760406636339,-500.0,0.00029082,7]
[391169428,1760406636349,-500.0,0.00029082,7]
[391169429,1760406636359,-500.0,0.00029082,7]
[391169430,1760406636369,-1017.91,0.00029082,7]
[391169431,1760406636379,-768.73,0.00029082,7]
[391169432,1760406636390,-958.73,0.00029082,7]
[391169433,1760406636401,-705.84,0.00029082,7]
[391169434,1760406636411,-849.54,0.00029082,7]
[391169435,1760406636422,-614.94,0.00029082,7]
[391169436,1760406636432,-4737.55,0.00029082,7]
[391169437,1760406636443,-985.56,0.00029082,7]
[391169438,1760406636454,-530.29,0.00029082,7]
[391169439,1760406636464,-500.0,0.00029082,7]
[391169440,1760406636958,-500.0,0.00029082,7]
[391169441,1760406636968,-500.0,0.00029082,7]
[391169442,1760406636978,-517.49191481,0.00029082,7]
[391169443,1760406636993,-343.96808519,0.00029082,7]
[391169444,1760406637002,-725.44,0.00029082,7]
[391169445,1760406637011,-500.0,0.00029082,7]
[391169446,1760406637020,-675.82,0.00029082,7]
[391169447,1760406637029,-500.0,0.00029082,7]
[391169448,1760406637038,-500.0,0.00029082,7]
[391169449,1760406637047,-2609.39,0.00029082,7]
[391169450,1760406637056,-500.0,0.00029082,7]
[391169451,1760406637065,-500.0,0.00029082,7]
[391169452,1760406637074,-3523.02,0.00029082,7]
[391169453,1760406637083,-529.99476076,0.00029082,7]
[391169454,1760406637131,-127.38523924,0.00029082,7]
[391169455,1760406637140,-945.54,0.00029082,7]
[391169456,1760406637150,-1037.6,0.00029082,7]
[391169457,1760406637160,-405.31329477,0.00029082,7]
[391169458,1760406637171,-324.27327818,0.00029082,7]
[391169459,1760406637182,-253.75974854,0.00029082,7]
[391169460,1760406637193,-896.15367851,0.00029082,7]
[391169461,1760406637203,-971.48,0.00029082,7]
[391169462,1760406637213,-500.0,0.00029082,7]
[391169463,1760406637222,-500.0,0.00029082,7]
[391169464,1760406637232,-458.32349571,0.00029082,7]
[391169466,1760406637244,-41.67650429,0.00029082,7]
[391169467,1760406637253,-1205.82,0.00029082,7]
[391169468,1760406637263,-500.0,0.00029082,7]
[391169469,1760406637272,-500.0,0.00029082,7]
[391169470,1760406637283,-500.0,0.00029082,7]
[391169471,1760406637292,-500.0,0.00029082,7]
[391169472,1760406637304,-500.0,0.00029082,7]
[391169473,1760406637314,-500.0,0.00029082,7]
[391169474,1760406637323,-500.0,0.00029082,7]
[391169476,1760406637334,-1499.03,0.00029082,7]
[391169477,1760406637343,-945.47,0.00029082,7]
[391169478,1760406637352,-500.0,0.00029082,7]
[391169479,1760406637362,-2779.37,0.00029082,7]
[391169480,1760406637372,-500.0,0.00029082,7]
[391169481,1760406637382,-996.93,0.00029082,7]
[391169482,1760406637393,-500.0,0.00029082,7]
[391169483,1760406637402,-915.89,0.00029082,7]
[391169484,1760406637412,-874.33,0.00029082,7]
[391169485,1760406637422,-724.86,0.00029082,7]
[391169486,1760406637432,-500.0,0.00029082,7]
[391169487,1760406637442,-2774.83,0.00029082,7]
[391169488,1760406637452,-884.57,0.00029082,7]
[391169489,1760406637461,-815.59,0.00029082,7]
[391169490,1760406637473,-500.0,0.00029082,7]
[391169491,1760406637483,-1025.9,0.00029082,7]
[391169492,1760406637492,-6391.82410674,0.00029082,7]
[391169493,1760406637505,-3128.83589326,0.00029082,7]
[391169494,1760406637516,-500.0,0.00029082,7]
[391169495,1760406637527,-710.6,0.00029082,7]
[391169496,1760406637538,-3600.66,0.00029082,7]
[391169497,1760406637547,-500.0,0.00029082,7]
[391169498,1760406637557,-500.0,0.00029082,7]
[391169499,1760406637566,-500.0,0.00029082,7]
[391169500,1760406637575,-500.0,0.00029082,7]
[391169501,1760406637584,-4555.89,0.00029082,7]
[391169502,1760406637593,-536.26,0.00029082,7]
[391169503,1760406637603,-500.0,0.00029082,7]
[391169504,1760406637612,-1168.89,0.00029082,7]
[391169505,1760406637622,-628.4,0.00029082,7]
[391169506,1760406637632,-500.0,0.00029082,7]
[391169507,1760406637642,-618.59,0.00029082,7]
[391169508,1760406637652,-763.73,0.00029082,7]
[391169509,1760406637662,-500.0,0.00029082,7]
[391169511,1760406637671,-500.0,0.00029082,7]
[391169513,1760406637680,-500.0,0.00029082,7]
[391169515,1760406637690,-2268.44,0.00029082,7]
[391169518,1760406637700,-500.0,0.00029082,7]
[391169520,1760406637709,-298.44162346,0.00029082,7]
[391169522,1760406637719,-539.32826179,0.00029082,7]
[391169523,1760406637728,-500.0,0.00029082,7]
[391169526,1760406637737,-998.07,0.00029082,7]
[391169528,1760406637747,-578.29,0.00029082,7]
[391169530,1760406637756,-813.77,0.00029082,7]
[391169532,1760406637767,-639.7,0.00029082,7]
[391169534,1760406637776,-500.0,0.00029082,7]
[391169536,1760406637786,-505.54,0.00029082,7]
[391169538,1760406637795,-2699.29,0.00029082,7]
[391169541,1760406637805,-500.0,0.00029082,7]
[391169544,1760406637814,-500.0,0.00029082,7]
[391169546,1760406637824,-842.03,0.00029082,7]
[391169548,1760406637834,-411.88517643,0.00029082,7]
[391169550,1760406637843,-570.8,0.00029082,7]
[391169552,1760406637853,-1442.32,0.00029082,7]
[391169554,1760406637867,-2505.1,0.00029082,7]
[391169556,1760406637877,-500.0,0.00029082,7]
[391169558,1760406637886,-637.86,0.00029082,7]
[391169560,1760406637896,-1160.68,0.00029082,7]
[391169562,1760406637907,-500.0,0.00029082,7]
[391169565,1760406637917,-500.0,0.00029082,7]
[391169566,1760406637926,-3207.82,0.00029082,7]
[391169567,1760406637940,-622.52,0.00029082,7]
[391169569,1760406637949,-1041.56,0.00029082,7]
[391169571,1760406637959,-1786.3,0.00029082,7]
[391169573,1760406637968,-833.38,0.00029082,7]
[391169575,1760406637978,-500.0,0.00029082,7]
[391169577,1760406637988,-763.42,0.00029082,7]
[391169579,1760406637998,-500.0,0.00029082,7]
[391169581,1760406638009,-669.32,0.00029082,7]
[391169583,1760406638019,-906.97,0.00029082,7]
[391169585,1760406638029,-500.0,0.00029082,7]
[391169587,1760406638039,-1695.59,0.00029082,7]
[391169589,1760406638048,-1109.26,0.00029082,7]
[391169591,1760406638058,-661.63,0.00029082,7]
[391169593,1760406638069,-696.08,0.00029082,7]
[391169596,1760406638079,-500.0,0.00029082,7]
[391169598,1760406638088,-688.05,0.00029082,7]
[391169600,1760406638097,-500.0,0.00029082,7]
[391169602,1760406638106,-500.0,0.00029082,7]
[391169604,1760406638116,-500.0,0.00029082,7]
[391169606,1760406638125,-500.0,0.00029082,7]
[391169608,1760406638135,-1126.73,0.00029082,7]
[391169610,1760406638145,-8686.01,0.00029082,7]
[391169612,1760406638156,-500.0,0.00029082,7]
[391169614,1760406638166,-500.0,0.00029082,7]
[391169616,1760406638176,-500.0,0.00029082,7]
[391169618,1760406638186,-1668.73,0.00029082,7]
[391169620,1760406638196,-500.0,0.00029082,7]
[391169622,1760406638206,-500.0,0.00029082,7]
[391169624,1760406638216,-500.0,0.00029082,7]
[391169626,1760406638226,-500.0,0.00029082,7]
[391169628,1760406638236,-500.0,0.00029082,7]
[391169630,1760406638246,-500.0,0.00029082,7]
[391169632,1760406638256,-166.66,0.00029082,30]
[391169634,1760406638267,-1071.18535693,0.00029082,5]
[391169637,1760406638277,-1094.12248628,0.00029082,5]
[391169639,1760406638288,-1136.9764593,0.00029082,5]
[391169641,1760406638297,-1070.63602591,0.00029082,5]
[391169643,1760406638307,-1124.93866076,0.00029082,5]
[391169645,1760406638317,-1123.26217033,0.00029082,5]
[391169647,1760406638327,-1041.58269704,0.00029082,5]
[391169649,1760406638337,-1099.58178654,0.00029082,5]
[391169651,1760406638347,-1055.61461862,0.00029082,5]
[391169653,1760406638357,-1030.20415856,0.00029082,5]
[391169655,1760406638367,-1035.09255344,0.00029082,5]
[391169657,1760406638376,-1132.54918857,0.00029082,5]
[391169659,1760406638385,-1116.70102153,0.00029082,5]
[391169661,1760406638395,-1114.45262779,0.00029082,5]
[391169663,1760406638405,-1009.45583705,0.00029082,5]
[391169665,1760406638415,-1148.43828781,0.00029082,5]
[391169667,1760406638425,-1109.04973671,0.00029082,5]
[391169669,1760406638434,-1034.25618027,0.00029082,5]
[391169671,1760406638445,-1105.4491996,0.00029082,5]
[391169673,1760406638460,-1073.65550846,0.00029082,5]
[391169675,1760406638470,-1018.87739335,0.00029082,5]
[391169677,1760406638480,-1291.65709142,0.00029082,5]
[391169679,1760406638489,-13775.20280852,0.00029088,2]
[391169681,1760406638499,-634.13,0.00029095,7]
[391169683,1760406638509,-829.51,0.00029095,7]
[391169685,1760406638519,-500.0,0.00029095,7]
[391169687,1760406638529,-500.0,0.00029095,7]
[391169689,1760406638539,-500.0,0.00029095,7]
[391169691,1760406638548,-500.0,0.00029095,7]
[391169693,1760406638558,-500.0,0.00029095,7]
[391169695,1760406638567,-749.77,0.00029095,7]
[391169698,1760406638577,-500.0,0.00029095,7]
[391169700,1760406638587,-519.05,0.00029095,7]
[391169702,1760406638596,-641.13,0.00029095,7]
[391169704,1760406638605,-500.0,0.00029095,7]
[391169706,1760406638615,-1064.39,0.00029095,7]
[391169708,1760406638624,-647.77,0.00029095,7]
[391169710,1760406638634,-500.0,0.00029095,7]
[391169712,1760406638644,-500.0,0.00029095,7]
[391169714,1760406638653,-503.51,0.00029095,7]
[391169716,1760406638663,-500.0,0.00029095,7]
[391169718,1760406638672,-500.0,0.00029095,7]
[391169720,1760406638682,-500.0,0.00029095,7]
[391169722,1760406638691,-500.0,0.00029095,7]
[391169724,1760406638700,-500.0,0.00029095,7]
[391169726,1760406638711,-500.0,0.00029095,7]
[391169728,1760406638721,-500.0,0.00029095,7]
[391169730,1760406638731,-798.23,0.00029095,7]
[391169733,1760406638744,-1270.88,0.00029095,7]
[391169735,1760406638754,-500.0,0.00029095,7]
[391169737,1760406638763,-500.0,0.00029095,7]
[391169739,1760406638773,-1690.28,0.00029095,7]
[391169741,1760406638782,-500.0,0.00029095,7]
[391169743,1760406638791,-1676.35,0.00029095,7]
[391169745,1760406638801,-500.0,0.00029095,7]
[391169747,1760406638811,-500.0,0.00029095,7]
[391169749,1760406638820,-500.0,0.00029095,7]
[391169751,1760406638830,-669.18,0.00029095,7]
[391169753,1760406638840,-500.0,0.00029095,7]
[391169755,1760406638851,-500.0,0.00029095,7]
[391169757,1760406638864,-500.0,0.00029095,7]
[391169759,1760406638874,-989.52,0.00029095,7]
[391169761,1760406638883,-500.0,0.00029095,7]
[391169763,1760406638893,-1383.96,0.00029095,7]
[391169765,1760406638904,-500.0,0.00029095,7]
[391169767,1760406638913,-500.0,0.00029095,7]
[391169770,1760406638924,-500.0,0.00029095,7]
[391169772,1760406638935,-1064.26,0.00029095,7]
[391169774,1760406638944,-580.22,0.00029095,7]
[391169776,1760406638953,-500.0,0.00029095,7]
[391169778,1760406638963,-500.0,0.00029095,7]
[391169780,1760406638972,-500.0,0.00029095,7]
[391169782,1760406638982,-500.0,0.00029095,7]
[391169784,1760406638992,-1844.75,0.00029095,7]
[391169786,1760406639001,-500.0,0.00029095,7]
[391169788,1760406639010,-500.0,0.00029095,7]
[391169790,1760406639020,-500.0,0.00029095,7]
[391169792,1760406639029,-500.0,0.00029095,7]
[391169794,1760406639039,-576.18,0.00029095,7]
[391169796,1760406639048,-500.0,0.00029095,7]
[391169798,1760406639058,-3870.95,0.00029095,7]
[391169800,1760406639068,-1077.71,0.00029095,7]
[391169802,1760406639077,-773.84,0.00029095,7]
[391169804,1760406639087,-500.0,0.00029095,7]
[391169806,1760406639097,-500.0,0.00029095,7]
[391169808,1760406639106,-1247.59,0.00029095,7]
[391169810,1760406639115,-727.86,0.00029096,7]
[391169812,1760406639125,-1320.2,0.00029096,7]
[391169814,1760406639134,-607.61,0.00029096,7]
[391169816,1760406639144,-500.0,0.00029096,7]
[391169818,1760406639154,-500.0,0.00029096,7]
[391169820,1760406639164,-729.21,0.00029096,7]
[391169822,1760406639174,-1102.61,0.00029096,7]
[391169824,1760406639184,-500.0,0.00029096,7]
[391169826,1760406639193,-500.0,0.00029096,7]
[391169828,1760406639202,-500.0,0.00029096,7]
[391169830,1760406639212,-500.0,0.00029096,7]
[391169832,1760406639221,-500.0,0.00029096,7]
[391169834,1760406639232,-500.0,0.00029096,7]
[391169836,1760406639241,-500.0,0.00029096,7]
[391169839,1760406639250,-792.12,0.00029096,7]
[391169841,1760406639260,-536.36,0.00029096,7]
[391169843,1760406639270,-6413.98,0.00029096,7]
[391169845,1760406639279,-1685.75,0.00029096,7]
[391169847,1760406639289,-500.0,0.00029096,7]
[391169849,1760406639299,-756.63,0.00029096,7]
[391169851,1760406639308,-684.59,0.00029096,7]
[391169853,1760406639317,-1429.17,0.00029096,7]
[391169874,1760406639491,-617.9,0.00029096,7]
[391169876,1760406639500,-500.0,0.00029096,7]
[391169878,1760406639509,-1112.59,0.00029096,7]
[391169880,1760406639518,-500.0,0.00029096,7]
[391169882,1760406639528,-500.0,0.00029096,7]
[391169884,1760406639537,-500.0,0.00029096,7]
[391169886,1760406639546,-500.0,0.00029096,7]
[391169888,1760406639555,-11166.57,0.00029096,7]
[391169890,1760406639564,-826.85,0.00029096,7]
[391169892,1760406639573,-3229.72,0.00029096,7]
[391169894,1760406639582,-500.0,0.00029096,7]
[391169896,1760406639591,-553.15,0.00029096,7]
[391169898,1760406639600,-787.61,0.00029096,7]
[391169901,1760406639611,-500.0,0.00029096,7]
[391169902,1760406639620,-1736.31,0.00029096,7]
[391169905,1760406639629,-6662.48,0.00029096,7]
[391169907,1760406639638,-500.0,0.00029096,7]
[391169908,1760406639647,-500.0,0.00029096,7]
[391169910,1760406639656,-500.0,0.00029096,7]
[391169912,1760406639665,-500.0,0.00029096,7]
[391169914,1760406639674,-500.0,0.00029096,7]
[391169916,1760406639683,-781.32,0.00029096,7]
[391169918,1760406639692,-653.27,0.00029096,7]
[391169920,1760406639701,-530.92,0.00029096,7]
[391169922,1760406639710,-1685.17,0.00029096,7]
[391169924,1760406639719,-601.19,0.00029096,7]
[391169926,1760406639728,-500.0,0.00029096,7]
[391169928,1760406639738,-246.80439183,0.00029096,7]
[391169930,1760406639747,-500.0,0.00029096,7]
[391169932,1760406639756,-500.0,0.00029096,7]
[391169934,1760406639765,-4506.19,0.00029096,7]
[391169936,1760406639774,-500.0,0.00029096,7]
[391169938,1760406639783,-500.0,0.00029096,7]
[391169940,1760406639792,-619.33,0.00029096,7]
[391169942,1760406639801,-151.0,0.00029096,30]
[391169944,1760406639811,-1904.0,0.00029097,2]
[391169946,1760406639820,-5204.05115836,0.00029119,2]
[391169948,1760406639829,-500.0,0.0002914,7]
[391169950,1760406639838,-553.46517548,0.00029178,2]
[391169952,1760406639847,-500.0,0.0002918,7]
[391169954,1760406639862,-5204.05115836,0.00029188,2]
[391169956,1760406639875,-953.0,0.0002921,2]
[391169959,1760406639885,-712.73687048,0.00029255,2]
[391169961,1760406639898,-5204.05115836,0.00029257,2]
[391169962,1760406639908,-13775.20280852,0.00029259,2]
[391169964,1760406639918,-553.46517548,0.00029288,2]
[391169966,1760406639928,-2057.56,0.00029325,2]
[391169968,1760406639939,-742.852,0.00029325,2]
[391169971,1760406639951,-3417.189,0.00029325,2]
[391169973,1760406639962,-1270.333,0.00029325,2]
[391169975,1760406639971,-1313.671,0.00029325,2]
[391169977,1760406639981,-608.062,0.00029325,2]
[391169979,1760406639990,-1592.712,0.00029325,2]
[391169980,1760406640000,-573.04,0.00029325,2]
[391169982,1760406640010,-818.0,0.00029325,2]
[391169984,1760406640019,-4142.305,0.00029325,2]
[391169986,1760406640027,-1186.374,0.00029325,2]
[391169988,1760406640036,-903.971,0.00029325,2]
[391169990,1760406640045,-5204.05115836,0.00029325,2]
[391169992,1760406640054,-166.07915249,0.00029332,2]
[391169994,1760406640063,-4492.0,0.00029336,2]
[391169996,1760406640072,-160.21006,0.00029336,30]
[391169998,1760406640081,-151.0,0.00029336,30]
[391170000,1760406640090,-241.328804,0.00029336,30]
[391170002,1760406640099,-151.0,0.00029336,7]
[391170004,1760406640107,-151.0,0.00029336,30]
[391170006,1760406640116,-151.0,0.00029336,30]
[391170008,1760406640125,-151.0,0.00029336,30]
[391170010,1760406640134,-151.0,0.00029336,30]
[391170012,1760406640143,-151.0,0.00029336,30]
[391170014,1760406640151,-151.0,0.00029336,30]
[391170016,1760406640160,-2627.0,0.0002934,5]
[391170018,1760406640170,-430.28108585,0.0002934,5]
[391170020,1760406640179,-452.43033189,0.0002934,11]
[391170022,1760406640187,-205.86,0.00029341,2]
[391170024,1760406640197,-547.58729804,0.00029364,120]
[391170026,1760406640207,-635.23045333,0.00029364,120]
[391170027,1760406640215,-953.0,0.0002937,2]
[391170029,1760406640224,-200.0,0.00029372,2]
[391170031,1760406640234,-152.0,0.00029379,8]
[391170033,1760406640244,-500.0,0.0002938,7]
[391170035,1760406640253,-200.0,0.00029392,2]
[391170037,1760406640262,-1904.0,0.00029394,2]
[391170039,1760406640271,-5204.05115836,0.00029394,2]
[391170041,1760406640280,-553.46517548,0.00029397,2]
[391170043,1760406640289,-177.28938658,0.000294,2]
[391170045,1760406640298,-177.28938658,0.000294,2]
[391170047,1760406640307,-177.28938658,0.000294,2]
[391170049,1760406640317,-177.28938658,0.000294,2]
[391170051,1760406640326,-800.0,0.00029405,7]
[391170053,1760406640337,-1425.0,0.00029421,2]
[391170055,1760406640349,-250.04152215,0.00029423,2]
[391170057,1760406640358,-500.0,0.00029429,7]
[391170059,1760406640368,-500.0,0.00029429,7]
[391170061,1760406640377,-706.75,0.00029429,7]
[391170063,1760406640387,-323.81745969,0.00029429,7]
[391170065,1760406640398,-830.21,0.00029429,7]
[391170066,1760406640409,-500.0,0.00029429,7]
[391170067,1760406640418,-500.0,0.00029429,7]
[391170068,1760406640427,-500.0,0.00029429,7]
[391170069,1760406640436,-13775.20280852,0.00029429,2]
[391170070,1760406640445,-1425.0,0.00029438,2]
[391170071,1760406640454,-5204.05115836,0.00029463,2]
[391170072,1760406640463,-152.36785868,0.00029466,2]
[391170073,1760406640471,-299.35115235,0.00029476,2]
[391170074,1760406640480,-150.0,0.00029488,2]
[391170075,1760406640489,-954.0,0.00029496,2]
[391170076,1760406640498,-14229.2952,0.00029511,2]
[391170077,1760406640507,-1000.0,0.00029511,2]
[391170079,1760406640516,-152.008883,0.00029521,30]
[391170080,1760406640526,-151.937678,0.00029521,30]
[391170082,1760406640536,-151.0,0.00029521,30]
[391170084,1760406640545,-194.964288,0.00029521,30]
[391170086,1760406640556,-151.0,0.00029521,30]
[391170088,1760406640564,-194.964288,0.00029521,30]
[391170090,1760406640573,-194.964288,0.00029521,30]
[391170092,1760406640582,-194.964288,0.00029521,30]
[391170094,1760406640591,-2000.0,0.00029531,2]
[391170096,1760406640601,-5204.05115836,0.00029531,2]
[391170098,1760406640610,-953.0,0.00029552,2]
[391170100,1760406640620,-271.38763411,0.00029566,2]
[391170102,1760406640629,-572.5412,0.00029571,2]
[391170104,1760406640638,-500.0,0.00029575,7]
[391170107,1760406640648,-500.0,0.00029575,7]
[391170108,1760406640659,-706.75,0.00029575,7]
[391170110,1760406640668,-830.21,0.00029575,7]
[391170113,1760406640677,-500.0,0.00029575,7]
[391170115,1760406640686,-500.0,0.00029575,7]
[391170117,1760406640695,-1247.59,0.00029575,7]
[391170118,1760406640704,-1247.59,0.00029575,7]
[391170120,1760406640713,-500.0,0.00029575,7]
[391170122,1760406640722,-748.44,0.00029576,7]
[391170124,1760406640731,-1292.5,0.00029576,7]
[391170126,1760406640739,-171.00215421,0.00029576,7]
[391170128,1760406640748,-514.3329372,0.00029576,7]
[391170130,1760406640757,-4546.31,0.00029576,7]